[Event "*** MasterClass Titled Tuesday Blitz"]
[Site "Chess.com"]
[Date "2017.12.05"]
[Round "7"]
[White "ChessWarrior7197"]
[Black "nubair1198"]
[Result "0-1"]
[WhiteElo "2646"]
[BlackElo "2535"]
[TimeControl "180+2"]
[EndTime "15:41:16 PST"]
[Termination "nubair1198 won by resignation"]

1. e4 {[%clk 0:03:01.9]} 1... c6 {[%clk 0:03:00.9]} 2. d4 {[%clk 0:03:01.3]}
2... d5 {[%clk 0:03:02.8]} 3. Nc3 {[%clk 0:03:01.7]} 3... dxe4 {[%clk 0:03:04]}
4. Nxe4 {[%clk 0:03:03.6]} 4... Bf5 {[%clk 0:03:05.5]} 5. Ng3 {[%clk 0:03:04.3]}
5... Bg6 {[%clk 0:03:07.1]} 6. h4 {[%clk 0:03:05.6]} 6... h6 {[%clk 0:03:08.7]}
7. Nf3 {[%clk 0:03:07]} 7... e6 {[%clk 0:03:10]} 8. Ne5 {[%clk 0:03:05]} 8...
Bh7 {[%clk 0:03:10]} 9. Bd3 {[%clk 0:03:06.5]} 9... Bxd3 {[%clk 0:03:09.7]} 10.
Qxd3 {[%clk 0:03:06.9]} 10... Nd7 {[%clk 0:03:09.5]} 11. Nxd7 {[%clk 0:03:03.3]}
11... Qxd7 {[%clk 0:03:10.2]} 12. Be3 {[%clk 0:03:05]} 12... Nf6 {[%clk
0:03:10]} 13. O-O-O {[%clk 0:03:05.5]} 13... Qd5 {[%clk 0:03:01.9]} 14. c4
{[%clk 0:03:00.8]} 14... Qxg2 {[%clk 0:03:03.2]} 15. d5 {[%clk 0:02:33.4]} 15...
cxd5 {[%clk 0:02:34.2]} 16. c5 {[%clk 0:02:33.3]} 16... Qf3 {[%clk 0:02:20.7]}
17. Qb5+ {[%clk 0:02:32]} 17... Nd7 {[%clk 0:02:22.1]} 18. Qxb7 {[%clk
0:02:27.9]} 18... Rb8 {[%clk 0:02:13.7]} 19. Qxa7 {[%clk 0:02:24.8]} 19... Bxc5
{[%clk 0:01:53.1]} 20. Bxc5 {[%clk 0:02:18.2]} 20... Rc8 {[%clk 0:01:54.6]} 21.
Kb1 {[%clk 0:02:14.8]} 21... Nxc5 {[%clk 0:01:55.2]} 22. Rc1 {[%clk 0:02:00.8]}
22... O-O {[%clk 0:01:55.9]} 23. Rc3 {[%clk 0:01:38.7]} 23... Qxf2 {[%clk
0:01:39.1]} 24. Rhc1 {[%clk 0:01:38.9]} 24... Rb8 {[%clk 0:01:40.6]} 25. R1c2
{[%clk 0:01:30.5]} 25... Qg1+ {[%clk 0:01:37.7]} 26. Rc1 {[%clk 0:01:30.6]}
26... Rxb2+ {[%clk 0:01:39.2]} 27. Ka1 {[%clk 0:01:18.5]} 27... Nb3+ {[%clk
0:01:39.1]} 28. Kxb2 {[%clk 0:01:20.4]} 28... Qxa7 {[%clk 0:01:39.4]} 29. axb3
{[%clk 0:01:22.3]} 29... Ra8 {[%clk 0:01:37.7]} 0-1

[Event "*** MasterClass Titled Tuesday Blitz"]
[Site "Chess.com"]
[Date "2017.12.05"]
[Round "7"]
[White "1e41-0"]
[Black "isaacAbdulsalam"]
[Result "1-0"]
[WhiteElo "2348"]
[BlackElo "1962"]
[TimeControl "180+2"]
[EndTime "15:41:43 PST"]
[Termination "1e41-0 won by checkmate"]

1. d4 {[%clk 0:03:01.9]} 1... Nf6 {[%clk 0:03:00.1]} 2. c4 {[%clk 0:02:56]} 2...
e6 {[%clk 0:03:00.8]} 3. Nc3 {[%clk 0:02:57.1]} 3... Bb4 {[%clk 0:03:00.9]} 4.
f3 {[%clk 0:02:58.3]} 4... d5 {[%clk 0:02:58.4]} 5. a3 {[%clk 0:02:57.5]} 5...
Bxc3+ {[%clk 0:02:57]} 6. bxc3 {[%clk 0:02:58.7]} 6... O-O {[%clk 0:02:57.3]} 7.
cxd5 {[%clk 0:02:59.9]} 7... Nxd5 {[%clk 0:02:57.8]} 8. e4 {[%clk 0:02:55.2]}
8... Nxc3 {[%clk 0:02:41.6]} 9. Qb3 {[%clk 0:02:47.5]} 9... Qxd4 {[%clk
0:02:38.8]} 10. Bb2 {[%clk 0:02:48.2]} 10... Qe3+ {[%clk 0:02:07.1]} 11. Ne2
{[%clk 0:02:44.4]} 11... Nc6 {[%clk 0:01:46.2]} 12. Qxc3 {[%clk 0:02:43.2]}
12... Qxc3+ {[%clk 0:01:46.6]} 13. Bxc3 {[%clk 0:02:45.1]} 13... b6 {[%clk
0:01:47]} 14. Rc1 {[%clk 0:02:39.9]} 14... Ba6 {[%clk 0:01:44.2]} 15. Nf4 {[%clk
0:02:33.2]} 15... Bxf1 {[%clk 0:01:44]} 16. Rxf1 {[%clk 0:02:32.6]} 16... e5
{[%clk 0:01:37.8]} 17. Nd5 {[%clk 0:02:32.6]} 17... f6 {[%clk 0:01:30.6]} 18.
Bb2 {[%clk 0:02:25.4]} 18... Na5 {[%clk 0:01:25.3]} 19. Rxc7 {[%clk 0:02:24.2]}
19... Rac8 {[%clk 0:01:21.8]} 20. Rxc8 {[%clk 0:02:23]} 20... Rxc8 {[%clk
0:01:17.8]} 21. Ne7+ {[%clk 0:02:17.8]} 21... Kf7 {[%clk 0:01:19]} 22. Nxc8
{[%clk 0:02:19.7]} 22... Nc4 {[%clk 0:01:18.4]} 23. Bc1 {[%clk 0:02:18.1]} 23...
a5 {[%clk 0:01:18.9]} 24. Ke2 {[%clk 0:02:17.9]} 24... b5 {[%clk 0:01:10.6]} 25.
Kd3 {[%clk 0:01:57]} 25... Ke6 {[%clk 0:01:05.8]} 26. a4 {[%clk 0:01:58]} 26...
Nd6 {[%clk 0:01:05.8]} 27. Nxd6 {[%clk 0:01:58.3]} 27... Kxd6 {[%clk 0:01:07.7]}
28. axb5 {[%clk 0:01:58.3]} 28... Kc5 {[%clk 0:01:09.2]} 29. Bd2 {[%clk
0:01:59.7]} 29... Kxb5 {[%clk 0:01:10.4]} 30. Ra1 {[%clk 0:02:01.6]} 30... a4
{[%clk 0:01:11.5]} 31. Ra3 {[%clk 0:02:02.7]} 31... g6 {[%clk 0:01:12.3]} 32. g3
{[%clk 0:02:04.2]} 32... f5 {[%clk 0:01:10.5]} 33. f4 {[%clk 0:02:05.6]} 33...
exf4 {[%clk 0:01:10.1]} 34. gxf4 {[%clk 0:02:07.5]} 34... fxe4+ {[%clk
0:01:08.3]} 35. Kxe4 {[%clk 0:02:09.4]} 35... h6 {[%clk 0:01:08.6]} 36. h3
{[%clk 0:02:10.4]} 36... h5 {[%clk 0:01:09.5]} 37. h4 {[%clk 0:02:11.6]} 37...
Kc6 {[%clk 0:01:05.4]} 38. Rxa4 {[%clk 0:02:13]} 38... Kd6 {[%clk 0:01:06.4]}
39. Ra6+ {[%clk 0:02:14.2]} 39... Ke7 {[%clk 0:01:07.1]} 40. Rxg6 {[%clk
0:02:16.1]} 40... Kf7 {[%clk 0:01:08.4]} 41. Rg5 {[%clk 0:02:18]} 41... Kf6
{[%clk 0:01:08.7]} 42. Rxh5 {[%clk 0:02:19.9]} 42... Kg6 {[%clk 0:01:09.8]} 43.
Rg5+ {[%clk 0:02:21.8]} 43... Kh6 {[%clk 0:01:11]} 44. Kf5 {[%clk 0:02:22.4]}
44... Kh7 {[%clk 0:01:12.2]} 45. Kf6 {[%clk 0:02:23.8]} 45... Kh6 {[%clk
0:01:12.4]} 46. f5 {[%clk 0:02:23.4]} 46... Kh7 {[%clk 0:01:12.6]} 47. Kf7
{[%clk 0:02:24.1]} 47... Kh8 {[%clk 0:01:13.8]} 48. Rh5# {[%clk 0:02:25]} 1-0

[Event "*** MasterClass Titled Tuesday Blitz"]
[Site "Chess.com"]
[Date "2017.12.05"]
[Round "7"]
[White "pulvettd"]
[Black "wonderfultime"]
[Result "1-0"]
[WhiteElo "2280"]
[BlackElo "2718"]
[TimeControl "180+2"]
[EndTime "15:42:43 PST"]
[Termination "pulvettd won by resignation"]

1. d4 {[%clk 0:02:59.3]} 1... d5 {[%clk 0:03:01]} 2. c4 {[%clk 0:02:58]} 2... c6
{[%clk 0:03:01.9]} 3. Nc3 {[%clk 0:02:57.7]} 3... Nf6 {[%clk 0:03:03.3]} 4. e3
{[%clk 0:02:58.9]} 4... a6 {[%clk 0:03:04.8]} 5. Nf3 {[%clk 0:02:58.7]} 5... Bf5
{[%clk 0:03:06]} 6. Be2 {[%clk 0:02:58]} 6... h6 {[%clk 0:03:05]} 7. Bd3 {[%clk
0:02:58.6]} 7... Bxd3 {[%clk 0:02:58.5]} 8. Qxd3 {[%clk 0:03:00.5]} 8... e6
{[%clk 0:03:00.2]} 9. O-O {[%clk 0:03:00.6]} 9... Nbd7 {[%clk 0:03:00.9]} 10.
Bd2 {[%clk 0:02:59.3]} 10... Be7 {[%clk 0:03:01.6]} 11. e4 {[%clk 0:03:00.1]}
11... dxe4 {[%clk 0:03:03.5]} 12. Nxe4 {[%clk 0:02:59.8]} 12... O-O {[%clk
0:03:05.4]} 13. Bc3 {[%clk 0:02:58.5]} 13... Qc7 {[%clk 0:03:01.8]} 14. Rad1
{[%clk 0:02:54.7]} 14... Rfd8 {[%clk 0:03:01.8]} 15. Qe3 {[%clk 0:02:51.3]}
15... Rac8 {[%clk 0:02:56.1]} 16. h3 {[%clk 0:02:44.4]} 16... b5 {[%clk
0:02:45]} 17. b3 {[%clk 0:02:43.9]} 17... a5 {[%clk 0:02:35.3]} 18. Ng3 {[%clk
0:02:34.9]} 18... Bd6 {[%clk 0:02:29.9]} 19. Ne5 {[%clk 0:02:33.2]} 19... a4
{[%clk 0:02:25.2]} 20. f4 {[%clk 0:02:30.6]} 20... axb3 {[%clk 0:02:18.8]} 21.
axb3 {[%clk 0:02:32.5]} 21... bxc4 {[%clk 0:02:16.2]} 22. bxc4 {[%clk
0:02:34.4]} 22... c5 {[%clk 0:02:16]} 23. d5 {[%clk 0:02:35.4]} 23... Re8 {[%clk
0:02:12.3]} 24. Rfe1 {[%clk 0:02:18.6]} 24... Bf8 {[%clk 0:01:52]} 25. Qf3
{[%clk 0:02:12.3]} 25... exd5 {[%clk 0:01:47]} 26. cxd5 {[%clk 0:02:10.8]} 26...
Rb8 {[%clk 0:01:31.9]} 27. Nf5 {[%clk 0:01:58]} 27... Rb3 {[%clk 0:01:21.4]} 28.
Qg3 {[%clk 0:01:55.6]} 28... Nxe5 {[%clk 0:00:22.3]} 29. fxe5 {[%clk 0:01:53.7]}
29... g6 {[%clk 0:00:23.7]} 30. d6 {[%clk 0:01:51.1]} 30... Qd7 {[%clk
0:00:23.8]} 31. Ne7+ {[%clk 0:01:49.8]} 31... Bxe7 {[%clk 0:00:21.3]} 32. dxe7
{[%clk 0:01:51.7]} 32... Ne4 {[%clk 0:00:19.6]} 33. Rxd7 {[%clk 0:01:48.5]}
33... Nxg3 {[%clk 0:00:20.7]} 34. Rd8 {[%clk 0:01:48.3]} 34... Rb8 {[%clk
0:00:21.8]} 35. Rxb8 {[%clk 0:01:47.5]} 35... Rxb8 {[%clk 0:00:23.7]} 36. Rd1
{[%clk 0:01:47.8]} 36... Kh7 {[%clk 0:00:06.6]} 37. Rd8 {[%clk 0:01:45.7]} 1-0

[Event "*** MasterClass Titled Tuesday Blitz"]
[Site "Chess.com"]
[Date "2017.12.05"]
[Round "7"]
[White "penguingm1"]
[Black "Frolik67"]
[Result "1-0"]
[WhiteElo "2621"]
[BlackElo "2410"]
[TimeControl "180+2"]
[EndTime "15:42:54 PST"]
[Termination "penguingm1 won by resignation"]

1. d4 {[%clk 0:03:01.9]} 1... e6 {[%clk 0:02:59.9]} 2. c4 {[%clk 0:03:02.8]}
2... d5 {[%clk 0:02:59.6]} 3. Nc3 {[%clk 0:03:01.8]} 3... f5 {[%clk 0:02:59.7]}
4. Bf4 {[%clk 0:02:58.2]} 4... c6 {[%clk 0:03:00.1]} 5. e3 {[%clk 0:02:59.2]}
5... Nf6 {[%clk 0:03:00.6]} 6. Nf3 {[%clk 0:03:00.5]} 6... Bd6 {[%clk
0:02:56.8]} 7. Ne5 {[%clk 0:03:00.8]} 7... O-O {[%clk 0:02:57.2]} 8. Bd3 {[%clk
0:02:55.4]} 8... Ne4 {[%clk 0:02:57.7]} 9. h3 {[%clk 0:02:55.8]} 9... Qe7 {[%clk
0:02:53.3]} 10. c5 {[%clk 0:02:49.4]} 10... Bc7 {[%clk 0:02:49.2]} 11. O-O
{[%clk 0:02:46.6]} 11... Qd8 {[%clk 0:02:38]} 12. Ne2 {[%clk 0:02:24.1]} 12...
Nd7 {[%clk 0:02:37.8]} 13. b4 {[%clk 0:02:20.8]} 13... Nxe5 {[%clk 0:02:31.5]}
14. Bxe5 {[%clk 0:02:21.4]} 14... Bxe5 {[%clk 0:02:29.7]} 15. dxe5 {[%clk
0:02:23.3]} 15... Qc7 {[%clk 0:02:27.2]} 16. f3 {[%clk 0:02:22.5]} 16... Ng5
{[%clk 0:02:21.6]} 17. f4 {[%clk 0:02:23]} 17... Ne4 {[%clk 0:02:19.7]} 18. Bxe4
{[%clk 0:02:23.1]} 18... dxe4 {[%clk 0:02:18.4]} 19. Nd4 {[%clk 0:02:09.4]}
19... Rd8 {[%clk 0:02:14]} 20. Qb3 {[%clk 0:02:09.7]} 20... Qf7 {[%clk
0:02:09.3]} 21. a4 {[%clk 0:02:09.7]} 21... Bd7 {[%clk 0:02:08.4]} 22. b5 {[%clk
0:02:07]} 22... Rab8 {[%clk 0:02:06.3]} 23. Kh2 {[%clk 0:02:07.4]} 23... Kh8
{[%clk 0:01:57.6]} 24. Rab1 {[%clk 0:02:07.7]} 24... Qe8 {[%clk 0:01:55.5]} 25.
Rfd1 {[%clk 0:02:06.4]} 25... h6 {[%clk 0:01:54.7]} 26. b6 {[%clk 0:01:22.5]}
26... a6 {[%clk 0:01:54.7]} 27. Ne2 {[%clk 0:01:23.7]} 27... Qe7 {[%clk
0:01:54.3]} 28. Rd6 {[%clk 0:01:25]} 28... Be8 {[%clk 0:01:52.2]} 29. Nd4 {[%clk
0:01:16.1]} 29... Bf7 {[%clk 0:01:51.7]} 30. Rd1 {[%clk 0:01:13.3]} 30... Rxd6
{[%clk 0:01:52.5]} 31. cxd6 {[%clk 0:01:14.3]} 31... Qd7 {[%clk 0:01:52.4]} 32.
Qb4 {[%clk 0:01:15.3]} 32... c5 {[%clk 0:01:44.3]} 33. Qxc5 {[%clk 0:01:14.6]}
33... Rc8 {[%clk 0:01:46]} 34. Qb4 {[%clk 0:01:14.5]} 34... Kh7 {[%clk
0:01:45.4]} 35. a5 {[%clk 0:01:10.3]} 35... Be8 {[%clk 0:01:43.3]} 36. Qd2
{[%clk 0:01:11.5]} 36... Qa4 {[%clk 0:01:37.7]} 37. Rc1 {[%clk 0:01:05.5]} 37...
Rxc1 {[%clk 0:01:30.8]} 38. Qxc1 {[%clk 0:01:07.4]} 38... Qxa5 {[%clk
0:01:32.2]} 39. Qc7 {[%clk 0:01:07.1]} 39... Qa2 {[%clk 0:01:18.5]} 40. Qe7
{[%clk 0:01:06.2]} 40... Bh5 {[%clk 0:00:43.1]} 41. Nxe6 {[%clk 0:01:05.6]} 1-0

[Event "*** MasterClass Titled Tuesday Blitz"]
[Site "Chess.com"]
[Date "2017.12.05"]
[Round "7"]
[White "visa"]
[Black "Dr_Nezard"]
[Result "0-1"]
[WhiteElo "2177"]
[BlackElo "2297"]
[TimeControl "180+2"]
[EndTime "15:42:57 PST"]
[Termination "Dr_Nezard won by checkmate"]

1. e4 {[%clk 0:03:01.9]} 1... c5 {[%clk 0:02:51.6]} 2. a3 {[%clk 0:03:01.4]}
2... Nc6 {[%clk 0:02:50.2]} 3. b4 {[%clk 0:03:01.8]} 3... cxb4 {[%clk
0:02:52.1]} 4. axb4 {[%clk 0:03:03]} 4... Nxb4 {[%clk 0:02:53.4]} 5. d4 {[%clk
0:03:04.2]} 5... d5 {[%clk 0:02:53.7]} 6. c3 {[%clk 0:03:05.2]} 6... Nc6 {[%clk
0:02:53.8]} 7. exd5 {[%clk 0:03:06.7]} 7... Qxd5 {[%clk 0:02:55.2]} 8. Na3
{[%clk 0:03:08.3]} 8... e5 {[%clk 0:02:27.5]} 9. Nb5 {[%clk 0:03:08.9]} 9... Qd8
{[%clk 0:02:27.6]} 10. d5 {[%clk 0:02:51.1]} 10... Nce7 {[%clk 0:02:18.5]} 11.
d6 {[%clk 0:02:51.9]} 11... Nc6 {[%clk 0:01:06.5]} 12. Nc7+ {[%clk 0:02:45]}
12... Kd7 {[%clk 0:01:07.8]} 13. Nxa8 {[%clk 0:02:26.7]} 13... Bxd6 {[%clk
0:01:08.6]} 14. Ba3 {[%clk 0:02:27.5]} 14... Ke7 {[%clk 0:01:05.6]} 15. Qxd6+
{[%clk 0:02:27.7]} 15... Qxd6 {[%clk 0:01:07.5]} 16. Bxd6+ {[%clk 0:02:28.4]}
16... Kxd6 {[%clk 0:01:09.4]} 17. O-O-O+ {[%clk 0:02:29.7]} 17... Kc5 {[%clk
0:01:09.1]} 18. Nc7 {[%clk 0:02:30.7]} 18... Nf6 {[%clk 0:01:04.6]} 19. Nb5
{[%clk 0:02:27.4]} 19... Ne4 {[%clk 0:01:01.7]} 20. Nh3 {[%clk 0:02:26.7]} 20...
Bxh3 {[%clk 0:01:01.5]} 21. gxh3 {[%clk 0:02:27.9]} 21... Nxf2 {[%clk
0:01:02.6]} 22. Be2 {[%clk 0:02:10.2]} 22... Nxh1 {[%clk 0:01:02.8]} 23. Rxh1
{[%clk 0:02:11.2]} 23... f5 {[%clk 0:00:50]} 24. Rd1 {[%clk 0:02:03.4]} 24... g6
{[%clk 0:00:42.5]} 25. Nd6 {[%clk 0:02:04.4]} 25... Kb6 {[%clk 0:00:37]} 26. Rd5
{[%clk 0:02:01.8]} 26... a6 {[%clk 0:00:25.2]} 27. Nc4+ {[%clk 0:02:00.2]} 27...
Kc7 {[%clk 0:00:22.9]} 28. Nxe5 {[%clk 0:01:59.8]} 28... Re8 {[%clk 0:00:16.3]}
29. Nxc6 {[%clk 0:01:44.7]} 29... Rxe2 {[%clk 0:00:15.2]} 30. Rd2 {[%clk
0:01:46.6]} 30... Rxd2 {[%clk 0:00:14.4]} 31. Kxd2 {[%clk 0:01:39.3]} 31... Kxc6
{[%clk 0:00:13.7]} 32. Kd3 {[%clk 0:01:40.3]} 32... Kd5 {[%clk 0:00:14.4]} 33.
c4+ {[%clk 0:01:41.2]} 33... Kc5 {[%clk 0:00:15.7]} 34. Kc3 {[%clk 0:01:42.2]}
34... a5 {[%clk 0:00:17.2]} 35. Kb3 {[%clk 0:01:43.1]} 35... b6 {[%clk
0:00:19.1]} 36. Kc3 {[%clk 0:01:44.1]} 36... f4 {[%clk 0:00:20]} 37. Kd3 {[%clk
0:01:44.6]} 37... g5 {[%clk 0:00:21.3]} 38. Kc3 {[%clk 0:01:39.7]} 38... h6
{[%clk 0:00:23.2]} 39. Kd3 {[%clk 0:01:40.9]} 39... Kb4 {[%clk 0:00:24]} 40. Kd4
{[%clk 0:01:41.9]} 40... a4 {[%clk 0:00:25.2]} 41. Ke5 {[%clk 0:01:42]} 41...
Kxc4 {[%clk 0:00:25.7]} 42. Kf5 {[%clk 0:01:43.9]} 42... a3 {[%clk 0:00:26.7]}
43. Kg6 {[%clk 0:01:45.8]} 43... a2 {[%clk 0:00:28.6]} 44. Kxh6 {[%clk
0:01:47.6]} 44... a1=Q {[%clk 0:00:29.8]} 45. Kxg5 {[%clk 0:01:49.5]} 45... Qe5+
{[%clk 0:00:30.4]} 46. Kg4 {[%clk 0:01:50.4]} 46... f3 {[%clk 0:00:31.3]} 47. h4
{[%clk 0:01:50.7]} 47... f2 {[%clk 0:00:30.9]} 48. h5 {[%clk 0:01:52.6]} 48...
f1=Q {[%clk 0:00:32.3]} 49. h4 {[%clk 0:01:54.1]} 49... Qff4+ {[%clk 0:00:32.3]}
50. Kh3 {[%clk 0:01:54.3]} 50... Qg3# {[%clk 0:00:33.5]} 0-1

[Event "*** MasterClass Titled Tuesday Blitz"]
[Site "Chess.com"]
[Date "2017.12.05"]
[Round "7"]
[White "hhbcd_grob_bes"]
[Black "ZABDIELBLANCO"]
[Result "1-0"]
[WhiteElo "1614"]
[BlackElo "1222"]
[TimeControl "180+2"]
[EndTime "15:43:00 PST"]
[Termination "hhbcd_grob_bes won by resignation"]

1. e4 {[%clk 0:03:01.9]} 1... c5 {[%clk 0:02:57.7]} 2. Nf3 {[%clk 0:02:57.1]}
2... Nc6 {[%clk 0:02:57.5]} 3. d4 {[%clk 0:02:58.6]} 3... e6 {[%clk 0:02:50.7]}
4. Be3 {[%clk 0:02:55.9]} 4... cxd4 {[%clk 0:02:51.5]} 5. Nxd4 {[%clk
0:02:56.9]} 5... Nxd4 {[%clk 0:02:52]} 6. Qxd4 {[%clk 0:02:56.3]} 6... d5 {[%clk
0:02:43.6]} 7. Bb5+ {[%clk 0:02:51.3]} 7... Bd7 {[%clk 0:02:38.7]} 8. Bxd7+
{[%clk 0:02:50.4]} 8... Qxd7 {[%clk 0:02:39.4]} 9. Nc3 {[%clk 0:02:52]} 9... b6
{[%clk 0:02:35.8]} 10. exd5 {[%clk 0:02:50]} 10... exd5 {[%clk 0:02:32.8]} 11.
Qxd5 {[%clk 0:02:49.3]} 11... Qxd5 {[%clk 0:02:33.1]} 12. Nxd5 {[%clk
0:02:49.3]} 12... O-O-O {[%clk 0:02:32.5]} 13. O-O-O {[%clk 0:02:49.9]} 13...
Ne7 {[%clk 0:02:28]} 14. Nxe7+ {[%clk 0:02:49.9]} 14... Bxe7 {[%clk 0:02:29.2]}
15. Bd4 {[%clk 0:02:42.8]} 15... f6 {[%clk 0:02:25.3]} 16. Rd3 {[%clk
0:02:42.6]} 16... Bc5 {[%clk 0:02:23.4]} 17. Rhd1 {[%clk 0:02:42.4]} 17... Rd6
{[%clk 0:02:21.3]} 18. Bxc5 {[%clk 0:02:43]} 18... Rxd3 {[%clk 0:02:21.5]} 19.
Rxd3 {[%clk 0:02:43.6]} 19... bxc5 {[%clk 0:02:22.7]} 20. Rc3 {[%clk 0:02:42.8]}
20... Kb7 {[%clk 0:02:19.1]} 21. Rxc5 {[%clk 0:02:43.3]} 21... Kb6 {[%clk
0:02:20.7]} 22. b4 {[%clk 0:02:42.3]} 22... Re8 {[%clk 0:02:18.3]} 23. Kd2
{[%clk 0:02:42.1]} 23... a5 {[%clk 0:02:17.9]} 24. a3 {[%clk 0:02:42.1]} 24...
axb4 {[%clk 0:02:18.3]} 25. axb4 {[%clk 0:02:43]} 25... Re4 {[%clk 0:02:17.7]}
26. c3 {[%clk 0:02:42.9]} 26... Rh4 {[%clk 0:02:17.4]} 27. h3 {[%clk 0:02:41.1]}
27... Rf4 {[%clk 0:02:17.3]} 28. Ke3 {[%clk 0:02:40]} 28... Rh4 {[%clk
0:02:13.1]} 29. Kf3 {[%clk 0:02:22.2]} 29... g5 {[%clk 0:02:10.2]} 30. Rf5
{[%clk 0:02:14.7]} 30... Rh6 {[%clk 0:02:00]} 31. Ke4 {[%clk 0:02:14.4]} 31...
Rg6 {[%clk 0:01:59.2]} 32. c4 {[%clk 0:02:15.1]} 32... h5 {[%clk 0:01:58.3]} 33.
Kd5 {[%clk 0:02:15]} 33... g4 {[%clk 0:01:58]} 34. h4 {[%clk 0:02:13]} 34... g3
{[%clk 0:01:57.4]} 35. f3 {[%clk 0:02:07.9]} 35... Kc7 {[%clk 0:01:54.4]} 36.
Ke6 {[%clk 0:02:08.5]} 36... Rg8 {[%clk 0:01:53.4]} 37. Rxf6 {[%clk 0:02:08.5]}
37... Re8+ {[%clk 0:01:54.1]} 38. Kf5 {[%clk 0:02:07.6]} 38... Re2 {[%clk
0:01:55.5]} 39. Rh6 {[%clk 0:02:06.3]} 39... Rxg2 {[%clk 0:01:56.8]} 40. Rxh5
{[%clk 0:02:07.2]} 40... Rf2 {[%clk 0:01:57.3]} 41. Ke4 {[%clk 0:02:04.8]} 41...
g2 {[%clk 0:01:52.8]} 42. Rg5 {[%clk 0:02:05.7]} 42... Rc2 {[%clk 0:01:51.3]}
43. Kd3 {[%clk 0:02:01.4]} 43... Rf2 {[%clk 0:01:49.6]} 44. Ke3 {[%clk
0:02:00.4]} 44... Ra2 {[%clk 0:01:50.1]} 45. h5 {[%clk 0:01:57.1]} 45... Ra3+
{[%clk 0:01:49.7]} 46. Ke4 {[%clk 0:01:56.4]} 46... Ra2 {[%clk 0:01:42.9]} 47.
h6 {[%clk 0:01:57.1]} 47... Re2+ {[%clk 0:01:43.2]} 48. Kd3 {[%clk 0:01:56.7]}
48... Re1 {[%clk 0:01:42.7]} 49. Rxg2 {[%clk 0:01:53.9]} 49... Rh1 {[%clk
0:01:44]} 50. Rg7+ {[%clk 0:01:52.8]} 50... Kd6 {[%clk 0:01:45.2]} 51. h7 {[%clk
0:01:52.8]} 51... Ke6 {[%clk 0:01:43.9]} 52. b5 {[%clk 0:01:53.6]} 52... Kf6
{[%clk 0:01:44.6]} 53. Rd7 {[%clk 0:01:54.4]} 53... Kg6 {[%clk 0:01:45.6]} 54.
b6 {[%clk 0:01:55.8]} 54... Rd1+ {[%clk 0:01:44.9]} 55. Ke2 {[%clk 0:01:54]}
55... Rxd7 {[%clk 0:01:46.2]} 56. h8=Q {[%clk 0:01:55]} 56... Re7+ {[%clk
0:01:47.4]} 57. Kd2 {[%clk 0:01:53.5]} 57... Rd7+ {[%clk 0:01:47.5]} 58. Kc3
{[%clk 0:01:54.8]} 58... Rb7 {[%clk 0:01:44.3]} 59. Qe8+ {[%clk 0:01:51]} 59...
Rf7 {[%clk 0:01:44.7]} 60. Qxf7+ {[%clk 0:01:51.8]} 60... Kxf7 {[%clk
0:01:45.3]} 1-0

[Event "*** MasterClass Titled Tuesday Blitz"]
[Site "Chess.com"]
[Date "2017.12.05"]
[Round "7"]
[White "Swarnapuri"]
[Black "Jahonas"]
[Result "1-0"]
[WhiteElo "2408"]
[BlackElo "2234"]
[TimeControl "180+2"]
[EndTime "15:43:06 PST"]
[Termination "Swarnapuri won by resignation"]

1. d4 {[%clk 0:03:01.9]} 1... Nf6 {[%clk 0:03:00.5]} 2. Bf4 {[%clk 0:03:02.5]}
2... d5 {[%clk 0:03:01.1]} 3. e3 {[%clk 0:03:03.7]} 3... Nc6 {[%clk 0:03:01.5]}
4. c4 {[%clk 0:03:02.5]} 4... e6 {[%clk 0:03:02.1]} 5. Nc3 {[%clk 0:02:59.3]}
5... Bb4 {[%clk 0:03:02]} 6. Qb3 {[%clk 0:02:56.4]} 6... O-O {[%clk 0:03:00.5]}
7. a3 {[%clk 0:02:56.3]} 7... Bxc3+ {[%clk 0:02:59.3]} 8. Qxc3 {[%clk
0:02:57.9]} 8... dxc4 {[%clk 0:02:58.5]} 9. Bxc4 {[%clk 0:02:58]} 9... Nd5
{[%clk 0:02:59.2]} 10. Bxd5 {[%clk 0:02:56.6]} 10... Qxd5 {[%clk 0:02:59.6]} 11.
Nf3 {[%clk 0:02:56.4]} 11... b6 {[%clk 0:02:55.1]} 12. O-O {[%clk 0:02:45.2]}
12... Bb7 {[%clk 0:02:53.5]} 13. Rac1 {[%clk 0:02:33.7]} 13... Rfc8 {[%clk
0:02:53.5]} 14. Rfe1 {[%clk 0:02:31.7]} 14... h6 {[%clk 0:02:51]} 15. e4 {[%clk
0:02:27.7]} 15... Qd7 {[%clk 0:02:50]} 16. b4 {[%clk 0:02:28.3]} 16... Ne7
{[%clk 0:02:46.6]} 17. Ne5 {[%clk 0:02:23.9]} 17... Qa4 {[%clk 0:02:39.8]} 18.
Qg3 {[%clk 0:02:22.6]} 18... Kf8 {[%clk 0:02:21.8]} 19. Qf3 {[%clk 0:02:23.1]}
19... Nf5 {[%clk 0:02:17.6]} 20. Qh5 {[%clk 0:02:18.8]} 20... Nd6 {[%clk
0:02:07.8]} 21. d5 {[%clk 0:02:14.9]} 21... Qe8 {[%clk 0:02:05.1]} 22. Ng4
{[%clk 0:02:04.3]} 22... f5 {[%clk 0:01:59.8]} 23. Qxe8+ {[%clk 0:01:55.1]}
23... Nxe8 {[%clk 0:01:56.8]} 24. exf5 {[%clk 0:01:44.5]} 24... exf5 {[%clk
0:01:51.5]} 25. Ne3 {[%clk 0:01:44.4]} 25... g5 {[%clk 0:01:49.9]} 26. Be5
{[%clk 0:01:40.5]} 26... f4 {[%clk 0:01:50.3]} 27. Nf5 {[%clk 0:01:33.6]} 27...
Bxd5 {[%clk 0:01:43.3]} 28. Nxh6 {[%clk 0:01:32.3]} 28... c5 {[%clk 0:01:18.1]}
29. bxc5 {[%clk 0:01:20.3]} 29... Rxc5 {[%clk 0:01:17.9]} 30. Bc3 {[%clk
0:01:16.4]} 30... a5 {[%clk 0:01:11.5]} 31. Bd4 {[%clk 0:00:56.7]} 31... Rxc1
{[%clk 0:01:11.5]} 32. Rxc1 {[%clk 0:00:58.6]} 32... b5 {[%clk 0:01:06.9]} 33.
Rc5 {[%clk 0:00:58.6]} 33... Bc4 {[%clk 0:01:04]} 34. Rxg5 {[%clk 0:00:59]}
34... Rd8 {[%clk 0:00:58.2]} 35. Bc5+ {[%clk 0:00:59.4]} 35... Nd6 {[%clk
0:00:55.5]} 36. Nf5 {[%clk 0:00:59.5]} 36... Kf7 {[%clk 0:00:51.5]} 37. Nxd6+
{[%clk 0:00:59.4]} 37... Kf6 {[%clk 0:00:52.4]} 38. h4 {[%clk 0:00:55.9]} 38...
b4 {[%clk 0:00:48.5]} 39. Nxc4 {[%clk 0:00:53.2]} 1-0